bitfinex/quotes_ETHUSD_20240811
["timestamp","ask_amount","ask_price","bid_price","bid_amount"]
[1723355367766,7.3,2662.6,2662.0,2.62952]
[1723355367987,7.3,2662.6,2662.1,0.55]
[1723355368268,1.236017,2662.6,2662.1,3.17949]
[1723355368487,2.62897,2662.7,2662.1,3.17949]
[1723355369765,2.4312,2662.8,2662.2,2.6294]
[1723355369963,2.4312,2662.8,2662.1,3.17945]
[1723355370400,2.4312,2662.8,2662.2,2.62933]
[1723355370896,2.4312,2662.8,2662.2,0.580878]
[1723355371098,2.4312,2662.8,2662.2,2.62936]
[1723355371598,5.06007,2662.8,2662.2,2.62936]
[1723355372476,2.62905,2662.6,2662.0,2.62952]
[1723355372802,2.62891,2662.7,2662.1,0.55]
[1723355373708,2.62891,2662.7,2662.1,3.17941]
[1723355373865,4.127797,2662.7,2662.1,3.1795]
[1723355374068,2.4312,2662.8,2662.2,2.62932]
[1723355374602,5.06002,2662.8,2662.2,2.62932]
[1723355374902,5.06001,2662.8,2662.2,2.62932]
[1723355375782,2.62881,2662.8,2662.2,2.62932]
[1723355377113,2.62901,2662.6,2662.1,0.55]
[1723355377273,5.346684,2662.8,2662.1,3.17942]
[1723355377606,7.975574,2662.8,2662.1,3.17942]
[1723355377810,2.62892,2662.7,2662.1,3.17942]
[1723355378323,2.62892,2662.7,2662.2,2.62939]
[1723355379500,5.346694,2662.8,2662.2,2.62934]
[1723355381718,7.975574,2662.8,2662.2,2.62934]
[1723355382626,3.9415574,2662.7,2661.9,4.90109]
[1723355382926,2.62916,2662.5,2661.9,2.2714]
[1723355383414,2.62916,2662.5,2662.0,2.62959]
[1723355383775,6.5705474,2662.7,2662.0,5.2591]
[1723355383976,3.49814398,2662.6,2662.0,2.62951]
[1723355384910,0.86910398,2662.6,2662.1,2.62942]
[1723355385094,2.62884,2662.8,2662.1,2.62942]
[1723355385431,9.714,2662.9,2662.3,2.62929]
[1723355385648,7.3,2662.9,2662.3,2.62923]
[1723355385917,7.3,2662.9,2662.5,2.62904]
[1723355386132,5.1706596,2663.1,2662.5,5.25808]
[1723355386311,5.1706596,2663.1,2662.5,2.62904]
[1723355387730,0.1281296,2663.1,2662.6,2.483]
[1723355388583,2.7566596,2663.1,2662.6,2.483]
[1723355389424,2.62871,2662.9,2662.4,3.033]
[1723355389991,2.62871,2662.9,2662.4,2.483]
[1723355390185,2.62882,2662.8,2662.4,2.483]
[1723355390581,2.62892,2662.7,2662.1,5.11243]
[1723355390836,2.62882,2662.8,2662.2,2.62936]
[1723355391143,0.1281296,2663.1,2661.9,2.483]
[1723355391349,2.62867,2663.0,2662.3,2.62921]
[1723355391538,2.62867,2663.0,2662.5,2.483]
[1723355391740,0.1281296,2663.1,2662.5,5.11204]
[1723355391952,0.1281296,2663.1,2662.6,2.62898]
[1723355392766,2.7566496,2663.1,2662.6,2.62898]
[1723355392951,2.7566496,2663.1,2662.5,5.63081527]
[1723355393154,2.7566496,2663.1,2662.6,0.55]
[1723355394066,0.1281296,2663.1,2662.6,3.17896]
[1723355394654,2.7566496,2663.1,2662.6,3.17896]
[1723355395287,2.7566496,2663.1,2662.6,0.55]
[1723355395473,0.1281296,2663.1,2662.6,1.21062305]
[1723355396155,0.1281296,2663.1,2662.6,3.83962305]
[1723355396997,0.1281296,2663.1,2662.6,3.83957305]
[1723355397507,0.1281296,2663.1,2662.6,3.17895]
[1723355399660,0.1281296,2663.1,2662.7,2.62888]
[1723355400093,0.1281296,2663.1,2662.7,2.6289]
[1723355402111,0.1281296,2663.1,2662.6,0.55]
[1723355402420,2.7566496,2663.1,2662.6,0.55]
[1723355402716,2.7566496,2663.1,2662.6,3.745193]
[1723355402870,2.7566496,2663.1,2662.6,3.17899]
[1723355403073,2.4181,2663.0,2662.6,0.55]
[1723355403500,2.7566496,2663.1,2662.6,0.55]
[1723355403713,0.1281296,2663.1,2663.0,2.3619]
[1723355403927,0.1281296,2663.1,2663.0,3.12384]
[1723355405132,0.1281296,2663.1,2663.0,5.75245]
[1723355406811,0.1281296,2663.1,2663.0,0.76194]
[1723355407026,0.1281296,2663.1,2662.9,2.62871]
[1723355408012,0.1281296,2663.1,2662.7,2.62885]
[1723355409233,0.1281296,2663.1,2662.6,2.9119]
[1723355409536,5.04672,2663.0,2662.3,2.62925]
[1723355410314,2.62877,2662.9,2662.3,2.62925]
[1723355410626,2.62877,2662.9,2662.3,3.391311]
[1723355411757,5.04718,2662.6,2661.9,4.99153]
[1723355411896,2.4181,2662.6,2662.1,2.62949]
[1723355412099,2.4181,2662.6,2661.7,3.0]
[1723355412100,2.4181,2662.9,2662.0,2.3619]
[1723355412422,0.1281296,2663.1,2662.4,2.62913]
[1723355412423,2.5462296,2663.1,2662.4,2.62913]
[1723355412655,2.5462296,2663.1,2662.0,2.62955]
[1723355412656,2.4181,2662.8,2662.0,2.62955]
[1723355412794,2.4181,2662.8,2662.2,2.62939]
[1723355412989,2.4181,2662.8,2662.2,2.62933]
[1723355413299,2.4181,2662.8,2662.4,2.62918]
[1723355413635,2.4181,2662.8,2662.2,2.62933]
[1723355413953,2.62892,2662.7,2662.0,3.185453]
[1723355414097,2.4181,2662.4,2661.8,2.92973]
[1723355414291,2.4181,2662.4,2661.9,2.62963]
[1723355414529,2.4181,2662.4,2662.0,2.62951]
[1723355415702,2.4181,2662.4,2661.8,2.62976]
[1723355415894,2.4181,2662.4,2661.9,0.55]
[1723355416092,2.922828,2662.4,2661.6,2.62992]
[1723355416297,2.4181,2662.0,2661.4,2.63017]
[1723355416500,2.4181,2662.0,2661.4,5.26029]
[1723355416693,2.4181,2662.0,2661.4,6.022509]
[1723355417033,2.4181,2662.0,2661.4,3.392339]
[1723355417419,2.4181,2662.0,2661.6,2.62998]
[1723355418837,2.4181,2662.0,2661.6,5.25989]
[1723355419236,2.4181,2662.0,2661.6,2.62991]
[1723355419437,2.3079,2662.2,2661.6,5.25983]
[1723355419622,2.3079,2662.2,2661.6,2.62991]
[1723355419814,2.3079,2662.2,2661.8,2.62979]
[1723355420017,2.3079,2662.2,2661.9,2.62969]
[1723355420236,0.5301453,2662.8,2662.1,2.6294]
[1723355420443,2.3079,2662.6,2662.1,2.6294]
[1723355421228,4.93691,2662.6,2662.1,2.6294]
[1723355421952,2.3079,2662.3,2661.7,2.62985]
[1723355422115,2.3079,2662.3,2661.8,2.62971]
[1723355422323,2.3079,2662.3,2661.9,2.62969]
[1723355422546,2.62905,2662.6,2662.0,2.62952]
[1723355422722,0.262905,2662.6,2662.1,2.62949]
[1723355423454,2.3079,2662.9,2662.3,2.62928]
[1723355424544,2.62888,2662.8,2662.1,2.62946]
[1723355425562,2.3079,2662.7,2662.1,2.62946]
[1723355425718,3.122738,2662.6,2661.9,2.62967]
[1723355425919,2.62916,2662.5,2661.9,2.62967]
[1723355426353,2.6292,2662.4,2661.9,2.62967]
[1723355426533,2.6292,2662.4,2661.7,4.95448]
[1723355426534,4.93723,2662.3,2661.7,2.62988]
[1723355426733,2.3079,2662.3,2661.7,2.62982]
[1723355428053,2.80161,2662.3,2661.7,2.62982]
[1723355430765,5.43097,2662.3,2661.7,2.62982]
[1723355431444,2.80161,2662.3,2661.8,2.62979]
[1723355431827,2.80161,2662.3,2661.6,2.62991]
[1723355432033,3.172491,2662.2,2661.4,4.95474]
[1723355432251,2.3079,2661.9,2661.5,2.63006]
[1723355435910,2.3079,2661.9,2661.4,5.26026]
[1723355436269,2.3079,2661.9,2661.1,4.95504]
[1723355436464,2.3079,2662.2,2661.5,2.63003]
[1723355436627,4.93733,2662.2,2661.6,2.62992]
[1723355436828,0.77899875,2662.1,2661.5,2.63003]
[1723355437472,3.40851875,2662.1,2661.5,2.63003]
[1723355437866,2.62991,2661.7,2661.1,7.58542]
[1723355438062,3.155877,2661.7,2661.1,2.63041]
[1723355438240,4.93792,2661.6,2661.1,2.63041]
[1723355438437,2.63017,2661.5,2660.9,4.95525]
[1723355438752,4.93792,2661.6,2660.9,2.63065]
[1723355438753,0.756809,2661.4,2660.9,2.63065]
[1723355439175,0.756809,2661.4,2660.8,2.63075]
[1723355439333,4.93792,2661.6,2660.9,2.63068]
[1723355439536,9.619,2661.9,2661.0,2.3187]
[1723355439757,10.92176087,2661.9,2661.4,2.63012]
[1723355441074,13.55148087,2661.9,2661.2,2.63031]
[1723355441243,0.7433983,2661.8,2661.3,2.63021]
[1723355441747,0.7433983,2661.8,2661.4,2.63018]
[1723355442560,0.7433983,2661.8,2661.2,2.63031]
[1723355442561,2.63005,2661.6,2660.9,2.6306]
[1723355442763,2.319,2661.3,2660.7,4.94951]
[1723355442965,2.319,2661.3,2660.8,2.63078]
[1723355443276,2.319,2661.3,2660.7,4.94951]
[1723355443575,2.319,2661.5,2660.9,2.63061]
[1723355443785,2.319,2661.5,2661.0,2.63053]
[1723355444359,2.813905,2661.5,2661.0,2.63053]
[1723355444777,2.319,2661.8,2661.3,2.63023]
[1723355445076,2.319,2661.8,2661.5,2.63008]
[1723355445380,2.319,2661.8,2661.3,5.26044]
[1723355445778,2.319,2661.8,2661.3,2.63021]
[1723355445983,7.94858,2662.1,2661.5,2.63002]
[1723355446147,4.9485,2662.1,2661.5,2.63002]
[1723355446781,2.319,2662.1,2661.6,2.62998]
[1723355447543,4.9485,2662.1,2661.5,2.63001]
[1723355447745,2.62961,2662.0,2661.3,2.63024]
[1723355447944,2.62961,2662.0,2661.3,5.26044]
[1723355448256,0.494861,2661.9,2661.3,5.26044]
[1723355448450,0.494861,2661.9,2661.3,2.63021]
[1723355448991,0.494861,2661.9,2661.5,2.63009]
[1723355449177,2.319,2662.1,2661.5,2.63009]
[1723355450646,4.94851,2662.1,2661.5,2.63009]
[1723355450843,2.62962,2662.0,2661.4,2.63019]
[1723355451047,3.387418,2662.0,2661.3,2.63026]
[1723355451572,0.757798,2662.0,2660.8,2.63077]
[1723355451771,2.63015,2661.5,2660.8,2.63077]
[1723355451971,2.62995,2661.7,2661.0,2.6305]
[1723355452170,2.319,2661.8,2661.2,2.63032]
[1723355452347,2.6299,2661.7,2661.2,2.63032]
[1723355452991,2.319,2661.8,2661.2,2.63032]
[1723355453365,2.319,2661.8,2661.0,2.63054]
[1723355453561,4.94881,2661.8,2661.2,2.63034]
[1723355453975,4.94881,2661.8,2661.0,2.63051]
[1723355453976,2.63,2661.6,2661.0,2.63051]
[1723355454150,3.387801,2661.7,2661.0,2.63051]
[1723355455690,6.017771,2661.7,2661.0,2.63051]
[1723355455911,2.63006,2661.6,2661.0,2.63051]
[1723355456070,1.0966831,2661.6,2661.0,2.62551]
[1723355456276,2.62992,2661.7,2661.0,2.62551]
[1723355456691,2.62992,2661.7,2661.0,5.25604]
[1723355457061,2.62992,2661.7,2661.1,2.63047]
[1723355458384,2.62992,2661.7,2661.0,5.25603]
[1723355458584,3.387787,2661.7,2661.0,2.62551]
[1723355458790,3.387787,2661.7,2661.2,2.63031]
[1723355458791,0.757867,2661.7,2661.2,2.63031]
[1723355459696,0.757867,2661.7,2661.3,2.63025]
[1723355459869,0.757867,2661.7,2661.2,2.63031]
[1723355460472,3.0,2662.0,2661.7,2.62983]
[1723355460473,7.3,2662.0,2661.7,2.62983]
[1723355460799,7.3,2662.4,2661.7,2.4251]
[1723355460997,7.3,2662.4,2662.1,2.62941]
[1723355461298,7.3,2662.4,2662.2,2.62939]
[1723355461659,7.3,2662.4,2662.3,2.6293]
[1723355461891,2.3112,2662.7,2662.3,2.6293]
[1723355462380,2.3112,2662.7,2662.1,2.62941]
[1723355462577,2.3112,2662.7,2662.2,2.62933]
[1723355463003,2.3112,2662.7,2662.3,2.6293]
[1723355463208,12.23991,2662.9,2662.3,2.6293]
[1723355463517,0.992871,2662.8,2662.3,2.6293]
[1723355463730,3.621711,2662.8,2662.1,5.05451]
[1723355463882,0.992871,2662.8,2662.3,2.62924]
[1723355464229,1.3232781,2662.7,2662.3,2.62924]
[1723355465104,1.3232781,2662.7,2662.3,2.62922]
[1723355465303,1.3232781,2662.7,2662.3,5.25846]
[1723355465619,1.3232781,2662.7,2662.3,2.62922]
[1723355466523,2.62882,2662.8,2662.3,2.62921]
[1723355466684,9.6112,2662.9,2662.3,2.62921]
[1723355468221,2.62882,2662.8,2662.3,2.62921]
[1723355469585,2.62882,2662.8,2662.1,5.05453]
[1723355469800,1.224002,2662.7,2662.2,2.62932]
[1723355470039,1.224002,2662.7,2662.3,2.62928]
[1723355470246,2.62882,2662.8,2662.3,2.62928]
[1723355470440,9.6112,2662.9,2662.3,2.62928]
[1723355471302,9.6112,2662.9,2662.4,2.62917]
[1723355471514,9.6112,2662.9,2662.3,5.25846]
[1723355471738,7.3,2662.9,2662.4,2.62918]
[1723355471901,7.3,2662.9,2662.5,2.62904]
[1723355474098,2.3112,2662.8,2661.9,5.05476]
[1723355474347,2.3112,2662.8,2662.4,2.6292]
[1723355475129,2.3112,2662.8,2662.4,2.62914]
[1723355477420,8.53678496,2662.9,2662.4,2.62914]
[1723355479858,7.3,2662.9,2662.5,2.62909]
[1723355480765,7.3,2662.9,2662.6,2.62898]
[1723355481357,2.4393296,2663.1,2662.6,2.62898]
[1723355481758,0.998,2663.0,2662.6,2.62898]
[1723355481926,0.998,2663.0,2662.6,2.62894]
[1723355482528,0.998,2663.0,2662.7,2.62883]
[1723355483025,0.998,2663.0,2662.7,4.88833]
[1723355484456,0.998,2663.0,2662.7,2.62883]
[1723355484730,3.3364,2663.0,2662.5,2.62902]
[1723355485156,0.998,2663.0,2662.6,2.62898]
[1723355485343,0.1281296,2663.1,2662.7,2.6289]
[1723355486580,0.1281296,2663.1,2662.7,2.2595]
[1723355487843,0.1281296,2663.1,2662.7,4.88839]
[1723355488369,0.1281296,2663.1,2662.8,2.62879]
[1723355489741,0.1281296,2663.1,2662.8,2.62875]
[1723355489942,0.1281296,2663.1,2662.9,2.62865]
[1723355490194,0.1281296,2663.1,2663.0,2.62861]
[1723355490579,0.1281296,2663.1,2663.0,4.88811]
[1723355491169,0.1281296,2663.1,2663.0,7.51672]
[1723355491770,0.1281296,2663.1,2663.0,10.69533]
[1723355491986,0.1281296,2663.1,2663.0,11.89711732]
[1723355492161,0.1281296,2663.1,2663.0,9.26850732]
[1723355494075,0.1281296,2663.1,2663.0,6.63989732]
[1723355494262,0.1281296,2663.1,2663.0,8.06672]
[1723355505219,0.1281296,2663.1,2663.0,2.62861]
[1723355510717,0.1281296,2663.1,2662.9,5.25735]
[1723355510888,0.1281296,2663.1,2662.9,2.62864]
[1723355511125,0.1281296,2663.1,2662.8,3.6875]
[1723355511329,2.4360296,2663.1,2662.9,0.55]
[1723355512241,0.1281296,2663.1,2662.9,3.17865]
[1723355512843,0.1281296,2663.1,2663.0,2.62861]
[1723355513145,0.1281296,2663.1,2662.9,5.80729]
[1723355513477,0.1281296,2663.1,2663.0,2.62861]
[1723355515383,0.1281296,2663.1,2662.9,3.17864]
[1723355515665,0.1281296,2663.1,2662.9,5.80728]
[1723355516246,0.1281296,2663.1,2663.0,2.62861]
[1723355517035,0.1281296,2663.1,2662.9,5.80727]
[1723355517666,0.1281296,2663.1,2662.9,3.17863]
[1723355518755,0.1281296,2663.1,2662.9,0.55]
[1723355520480,5.12178,2663.0,2662.8,3.6875]
[1723355520649,5.78241096,2662.9,2662.8,3.6875]
[1723355520848,6.78041096,2662.9,2662.8,3.6875]
[1723355521048,3.15370096,2662.9,2662.8,3.6875]
[1723355521241,0.52499096,2662.9,2662.8,3.6875]
[1723355521871,0.1281296,2663.1,2662.8,6.31631]
[1723355522860,0.1281296,2663.1,2662.8,6.31623]
[1723355523177,0.1281296,2663.1,2662.9,3.0326]
[1723355523780,0.1281296,2663.1,2663.0,2.62861]
[1723355529871,0.1281296,2663.1,2663.0,7.08006259]
[1723355530086,0.1281296,2663.1,2663.0,9.56266259]
[1723355532258,0.1281296,2663.1,2663.0,12.19127259]
[1723355534460,0.1281296,2663.1,2663.0,15.19127259]
[1723355535392,0.1281296,2663.1,2663.0,15.116174]
[1723355536395,0.1281296,2663.1,2663.0,12.487564]
[1723355536555,0.1281296,2663.1,2663.0,11.937564]
[1723355538290,0.1281296,2663.1,2663.0,12.935564]
[1723355538490,0.1281296,2663.1,2663.0,13.485564]
[1723355538718,0.1281296,2663.1,2663.0,16.114174]
[1723355539017,0.1281296,2663.1,2663.0,13.485564]
[1723355539589,0.1281296,2663.1,2663.0,16.114174]
[1723355539824,0.1281296,2663.1,2663.0,13.485564]
[1723355540021,0.1281296,2663.1,2663.0,16.114174]
[1723355540231,0.1281296,2663.1,2663.0,13.485564]
[1723355542133,0.1281296,2663.1,2663.0,16.114174]
[1723355542899,0.1281296,2663.1,2663.0,13.485564]
[1723355543633,0.1281296,2663.1,2663.0,16.114174]
[1723355543940,0.1281296,2663.1,2663.0,12.487564]
[1723355544238,0.1281296,2663.1,2663.0,16.114174]
[1723355544530,0.1281296,2663.1,2663.0,13.485564]
[1723355545030,0.1281296,2663.1,2663.0,16.114174]
[1723355552237,0.1281296,2663.1,2663.0,12.487564]
[1723355552559,0.1281296,2663.1,2663.0,13.485564]
[1723355553403,0.1281296,2663.1,2663.0,16.114174]
[1723355553846,0.1281296,2663.1,2663.0,13.485564]
[1723355554824,0.1281296,2663.1,2663.0,16.114174]
[1723355555029,0.1281296,2663.1,2663.0,11.002964]
[1723355555447,0.1281296,2663.1,2663.0,13.631574]
[1723355558868,0.1281296,2663.1,2663.0,15.900374]
[1723355559296,0.1281296,2663.1,2663.0,16.54987438]
[1723355560079,3.0,2664.9,2664.3,2.2688]
[1723355560272,3.0,2664.9,2664.6,3.62502]
[1723355560610,3.0,2664.9,2664.8,2.62683]
[1723355561378,3.0,2664.9,2664.8,3.17683]
[1723355561679,3.0,2664.9,2664.8,0.55]
[1723355561898,3.0,2664.9,2664.6,2.62702]
[1723355561899,3.0,2664.9,2664.7,3.17691]
[1723355562100,3.0,2664.9,2664.7,0.55]
[1723355563387,3.0,2664.9,2664.7,3.17693]
[1723355563881,3.0,2664.9,2664.8,2.62683]
[1723355564108,3.0,2664.9,2664.8,3.17683]
[1723355564312,3.0,2664.9,2664.8,0.55]
[1723355564912,5.4533,2664.9,2664.8,0.55]
[1723355565699,5.4533,2664.9,2664.6,3.17701]
[1723355566113,5.4533,2664.9,2664.6,0.55]
[1723355566309,5.99863,2664.9,2664.2,2.62739]
[1723355566622,5.99863,2664.9,2664.4,2.62723]
[1723355566817,5.99863,2664.9,2664.5,2.62711]
[1723355566985,0.599863,2664.8,2664.5,2.62711]
[1723355567182,0.599863,2664.8,2664.2,2.62738]
[1723355567387,0.599863,2664.8,2664.4,2.62719]
[1723355567591,0.599863,2664.8,2664.5,0.55]
[1723355567995,0.599863,2664.8,2664.5,3.17712]
[1723355568730,5.99863,2664.9,2664.6,2.62703]
[1723355569318,3.0,2664.9,2664.6,2.62703]
[1723355569505,3.0,2664.9,2664.7,3.1769]
[1723355569835,3.0,2664.9,2664.7,2.6269]
[1723355569997,3.0,2664.9,2664.8,0.55]
[1723355570197,3.54546,2664.9,2664.4,2.62718]
[1723355570593,3.54546,2664.9,2664.6,2.62697]
[1723355570906,3.54546,2664.9,2664.7,0.55]
[1723355571108,2.4546,2664.8,2664.5,2.62713]
[1723355571430,2.809146,2664.8,2664.6,2.62702]
[1723355571735,3.0,2664.9,2664.4,2.62721]
[1723355572036,2.4546,2664.8,2664.5,0.55]
[1723355572240,2.7546,2664.8,2664.5,0.55]
[1723355573031,2.7546,2664.8,2664.3,2.6273]
[1723355573835,2.7546,2664.8,2664.4,2.62722]
[1723355574331,2.7546,2664.8,2664.5,2.62713]
[1723355574530,2.7546,2664.8,2664.6,0.55]
[1723355574697,2.7546,2664.8,2664.5,0.55]
[1723355577050,2.7546,2664.8,2664.5,3.17712]
[1723355578049,2.7546,2664.8,2664.5,0.55]
[1723355578250,2.7546,2664.8,2664.4,3.17721]
[1723355579956,0.57546,2664.7,2664.4,0.55]
[1723355580120,0.57546,2664.7,2664.3,3.17726]
[1723355580319,2.7546,2664.8,2664.3,3.17726]
[1723355581728,2.7546,2664.8,2664.4,2.62719]
[1723355582059,2.7546,2664.8,2664.5,3.17712]
[1723355582562,3.0,2664.9,2664.5,0.55]
[1723355582769,3.0,2664.9,2664.7,2.62686]
[1723355582972,3.0,2664.9,2664.8,0.55]
[1723355583466,3.0,2664.9,2664.8,3.17683]
[1723355583654,3.0,2664.9,2664.8,0.55]
[1723355584031,3.0,2664.9,2664.8,3.17683]
[1723355587582,3.0,2664.9,2664.8,6.51263]
[1723355587875,3.0,2664.9,2664.8,10.053415]
[1723355588372,3.0,2664.9,2664.8,12.680245]
[1723355588576,3.0,2664.9,2664.8,15.680245]
[1723355589341,0.11659937,2665.7,2665.2,11.21512]
[1723355589535,0.01906737,2665.7,2665.6,5.2521]
[1723355589736,0.01906737,2665.7,2665.6,6.7991]
[1723355590171,0.01906737,2665.7,2665.6,9.1379]
[1723355590354,0.01906737,2665.7,2665.6,9.81781]
[1723355591386,0.01906737,2665.7,2665.6,15.44386]
[1723355591594,0.1281296,2665.8,2665.7,10.21665]
[1723355591779,0.1281296,2665.8,2665.7,14.14295]
[1723355592093,0.1281296,2665.8,2665.7,15.15365232]
[1723355592385,0.1281296,2665.8,2665.7,16.15065232]
[1723355593659,0.1281296,2665.8,2665.7,17.54265232]
[1723355594077,0.1281296,2665.8,2665.7,14.54040232]
[1723355594263,0.1281296,2665.8,2665.7,17.16635232]
[1723355594885,0.1281296,2665.8,2665.7,12.20160232]
[1723355595601,0.1281296,2665.8,2665.7,5.62595]
[1723355596600,0.1281296,2665.8,2665.7,8.2519]
[1723355597107,0.1281296,2665.8,2665.7,8.8019]
[1723355597595,0.1281296,2665.8,2665.7,3.55]
[1723355597819,0.1281296,2665.8,2665.7,0.55]
[1723355597976,0.1281296,2665.8,2665.7,3.17595]
[1723355598182,0.1281296,2665.8,2665.7,6.17595]
[1723355598976,0.1281296,2665.8,2665.7,3.55]
[1723355599173,0.1281296,2665.8,2665.7,0.55]
[1723355599408,0.1281296,2665.8,2665.6,2.62604]
[1723355599581,0.1281296,2665.8,2665.5,3.55]
[1723355599582,0.1281296,2665.8,2665.7,0.55]
[1723355599781,0.1281296,2665.8,2665.5,5.62614]
[1723355599782,0.1281296,2665.8,2665.5,3.0]
[1723355600010,0.1281296,2665.8,2665.2,2.6264]
[1723355600211,0.1281296,2665.8,2665.4,2.62624]
[1723355600412,0.1281296,2665.8,2665.6,2.62603]
[1723355600614,0.1281296,2665.8,2665.7,2.62595]
[1723355601105,0.1281296,2665.8,2665.7,2.70096911]
[1723355601313,0.1281296,2665.8,2665.7,0.07501911]
[1723355601512,0.1281296,2665.8,2665.7,0.55]
[1723355602677,0.1281296,2665.8,2665.5,0.55]
[1723355603314,0.1281296,2665.8,2665.2,8.01536]
[1723355603315,0.63401056,2665.8,2665.3,3.55]
[1723355603704,0.1281296,2665.8,2665.4,2.62618]
[1723355603911,0.1281296,2665.8,2665.5,0.55]
[1723355604680,0.1281296,2665.8,2665.4,0.55]
[1723355605699,0.1281296,2665.8,2665.4,3.12623]
[1723355606987,0.1281296,2665.8,2665.4,0.5]
[1723355608619,0.1281296,2665.8,2665.4,3.12623]
[1723355608988,0.1281296,2665.8,2665.5,2.62612]
[1723355609596,0.1281296,2665.8,2665.4,0.5]
[1723355609889,0.1281296,2665.8,2665.4,5.75235]
[1723355610112,0.1281296,2665.8,2665.4,6.459105]
[1723355610992,0.1281296,2665.8,2665.5,2.62606]
[1723355611201,0.1281296,2665.8,2665.6,0.55]
[1723355611403,2.3049,2665.7,2665.4,0.5]
[1723355612425,0.1281296,2665.8,2665.4,0.5]
[1723355613033,0.1281296,2665.8,2665.4,3.12624]
[1723355613215,0.1281296,2665.8,2665.4,0.5]
[1723355615715,2.62595,2665.7,2665.3,0.55]
[1723355616419,0.1281296,2665.8,2665.3,0.55]
[1723355616644,0.1281296,2665.8,2665.3,3.17633]
[1723355617757,2.7539896,2665.8,2665.3,0.55]
[1723355617967,3.52245056,2665.8,2665.3,0.55]
[1723355619931,0.89659056,2665.8,2665.3,0.55]
[1723355620247,3.52244056,2665.8,2665.3,0.55]
[1723355620758,0.89659056,2665.8,2665.3,3.17632]
[1723355621161,0.1281296,2665.8,2665.4,2.6262]
[1723355621458,0.1281296,2665.8,2665.5,0.55]
[1723355621665,0.1281296,2665.8,2665.5,5.65792]
[1723355621972,0.1281296,2665.8,2665.5,0.55]
[1723355622138,0.1281296,2665.8,2665.4,3.17616]
[1723355622345,0.1281296,2665.8,2665.4,0.55]
[1723355623994,0.1281296,2665.8,2665.5,2.62614]
[1723355624157,0.1281296,2665.8,2665.4,0.55]
[1723355624478,0.1281296,2665.8,2665.4,3.17623]
[1723355625197,0.1281296,2665.8,2665.6,2.62603]
[1723355625650,0.1281296,2665.8,2665.7,5.65775]
[1723355627574,0.1281296,2665.8,2665.7,8.2837]
[1723355632708,0.1281296,2665.8,2665.4,2.62623]
[1723355632994,0.1281296,2665.8,2665.3,2.62626]
[1723355633282,0.1281296,2665.8,2665.4,2.62618]
[1723355634179,0.1281296,2665.8,2665.6,2.62601]
[1723355634560,0.1281296,2665.8,2665.5,2.62614]
[1723355634763,0.1281296,2665.8,2665.6,2.62604]
[1723355634965,0.1281296,2665.8,2665.5,5.25222]
[1723355635167,0.1281296,2665.8,2665.6,0.55]
[1723355635372,0.1281296,2665.8,2665.6,3.17598]
[1723355636563,0.1281296,2665.8,2665.7,2.62595]
[1723355636765,0.1281296,2665.8,2665.7,3.17595]
[1723355638098,0.1281296,2665.8,2665.7,0.55]
[1723355638699,0.1281296,2665.8,2665.6,0.55]
[1723355638868,0.1281296,2665.8,2665.4,6.17623]
[1723355639270,0.1281296,2665.8,2665.4,3.55]
[1723355639509,2.3927,2665.7,2665.4,0.55]
[1723355639961,2.3927,2665.7,2665.1,5.25297]
[1723355640165,5.01866,2665.7,2665.1,2.62647]
[1723355640367,5.56086006,2665.7,2665.2,2.62642]
[1723355641176,5.56086006,2665.7,2665.1,2.62647]
[1723355641477,8.18689006,2665.7,2665.1,2.62647]
[1723355641805,5.56086006,2665.7,2665.1,2.62647]
[1723355642114,0.59643806,2665.6,2665.1,2.62647]
[1723355642407,0.59643806,2665.6,2665.1,2.62646]
[1723355642713,0.59643806,2665.6,2665.3,2.62633]
[1723355642899,2.3927,2665.7,2665.2,0.55]
[1723355643302,2.3927,2665.7,2665.2,3.17644]
[1723355643670,0.1281296,2665.8,2665.3,2.2746]
[1723355644021,0.1281296,2665.8,2665.7,10.15245]
[1723355644221,0.1281296,2665.8,2665.7,11.717695]
[1723355644524,0.1281296,2665.8,2665.7,14.717695]
[1723355648576,0.1281296,2665.8,2665.7,17.343645]
[1723355649274,0.1281296,2665.8,2665.7,14.717695]
[1723355651538,0.1281296,2665.8,2665.7,12.091745]
[1723355651702,0.1281296,2665.8,2665.7,5.8019]
[1723355651902,0.1281296,2665.8,2665.4,2.6262]
[1723355652106,0.1281296,2665.8,2665.4,2.62618]
[1723355653094,0.1281296,2665.8,2665.5,2.62613]
[1723355653306,0.1281296,2665.8,2665.3,2.62627]
[1723355653518,2.3927,2665.7,2665.3,2.62634]
[1723355653730,2.90736396,2665.7,2665.3,2.62634]
[1723355654096,2.90736396,2665.7,2665.1,2.62647]
[1723355654519,5.53337396,2665.7,2665.1,2.6265]
[1723355654732,0.1281296,2665.8,2665.6,2.62603]
[1723355654946,0.1281296,2665.8,2665.2,2.2746]
[1723355654947,0.1281296,2665.8,2665.7,5.2519]
[1723355655106,0.1281296,2665.8,2665.7,5.77709]
[1723355655499,0.1281296,2665.8,2665.7,5.2519]
[1723355656012,0.0781296,2665.8,2665.7,5.8019]
[1723355660323,0.0781296,2665.8,2665.7,10.82915]
[1723355660527,0.0781296,2665.8,2665.7,13.82915]
[1723355663708,0.0781296,2665.8,2665.7,11.2032]
[1723355664203,0.0781296,2665.8,2665.7,8.8019]
[1723355664439,0.0781296,2665.8,2665.7,11.42785]
[1723355665541,0.0781296,2665.8,2665.7,8.8019]
[1723355666039,0.0781296,2665.8,2665.7,8.2519]
[1723355667527,0.0781296,2665.8,2665.7,8.8019]